Cogmind - Beta 14 @@@ ROGUE MODE // 2024.11.22 @ 18:22:59 Player: the_dinner22 Result: Destroyed by G-47 Trooper with Particle Gun Performance ------------- Evolutions (2) 1000 Regions Visited (4) 800 Robots Destroyed (35) 175 Value Destroyed (1023) 1023 Prototype IDs (0) 0 Alien Tech Used (0) 0 Bonus (0) 0 TOTAL SCORE: 2998 Bonus ------- None Cogmind --------- Core Integrity 0/550 Matter 2/300 Energy 100/100 System Corruption 0% Temperature Cool (9) Movement Core (350) Ox6 Location -8/Materials Parts ------- > --- POWER (1) -------- (None) > --- PROPULSION (4) --- (None) > --- UTILITY (3) ------ Large Storage Unit Improved Terrain Scan Processor > --- WEAPON (3) ------- Mini Grenade Launcher > --- INVENTORY (15) --- Light Deuterium Engine Light Deuterium Engine Light Deuterium Engine Heat Sink Recoil Stabilizer Light Armor Plating Light Armor Plating Light Armor Plating Reflective Plating Heavy Assault Rifle Peak State ------------ > --- POWER ------------ Light Deuterium Engine > --- PROPULSION ------- Aluminum Leg Improved Aluminum Leg Improved Aluminum Leg Improved Carbon-fiber Leg > --- UTILITY ---------- Large Storage Unit Improved Terrain Scan Processor Reflective Plating > --- WEAPON ----------- Heavy Assault Rifle Autogun Autogun > --- INVENTORY -------- Light Deuterium Engine Light Deuterium Engine Light Deuterium Engine Light Deuterium Engine Heat Sink Recoil Stabilizer Light Armor Plating Light Armor Plating Light Armor Plating Medium Armor Plating Heavy Assault Rifle Mini Grenade Launcher Mini Grenade Launcher Missile Launcher [Rating: 28] Favorites ----------- Power Ion Engine Engine Ion Engine Propulsion Improved Aluminum Leg Leg Improved Aluminum Leg Utility Small Storage Unit Device Shield Generator Storage Small Storage Unit Processor Improved Terrain Scan Processor Protection Light Armor Plating Weapon Autogun Energy Gun Small Laser Ballistic Gun Autogun Launcher Missile Launcher Build | -11 -10 -9 -9 -8 ------- Run | Yrd Mat Mat Min Mat Slots Evolved 4 | . . 2 . 2 Power . | . . . . . Propulsion 2 | . . 1 . 1 Utility 1 | . . 1 . . Weapon 1 | . . . . 1 Parts Attached 42 | 7 10 7 1 17 Power 7 | 1 1 1 . 4 Engine 7 | 1 1 1 . 4 Core . | . . . . . Reactor . | . . . . . Propulsion 13 | 2 6 2 . 3 Treads . | . . . . . Leg 13 | 2 6 2 . 3 Wheel . | . . . . . Hover . | . . . . . Flight . | . . . . . Utility 9 | 1 2 2 1 3 Device 1 | . 1 . . . Storage 2 | 1 . . 1 . Processor 1 | . . . . 1 Hackware . | . . . . . Protection 5 | . 1 2 . 2 Artifact . | . . . . . Weapon 13 | 3 1 2 . 7 Energy Gun 2 | 2 . . . . Energy Cannon . | . . . . . Ballistic Gun 7 | 1 1 2 . 3 Ballistic Cannon . | . . . . . Launcher 4 | . . . . 4 Special Weapon . | . . . . . Impact Weapon . | . . . . . Slashing Weapon . | . . . . . Piercing Weapon . | . . . . . Special Melee Weapon . | . . . . . Unidentified Prototypes . | . . . . . Parts Lost 13 | . . . . 13 Power 2 | . . . . 2 Propulsion 5 | . . . . 5 Utility 1 | . . . . 1 Weapon 5 | . . . . 5 Highest Loss Streak 12 | . . . . 12 To Critical Strikes . | . . . . . Average Slot Usage (%) 94 | . 97 95 100 88 Engine 10 | . 14 11 11 7 Leg 29 | . 28 33 33 28 Device 2 | . 4 4 . . Storage 11 | . 14 11 11 9 Processor 2 | . . . . 8 Protection 10 | . 6 13 22 9 Energy Gun 6 | . 18 3 . . Ballistic Gun 17 | . 9 18 22 21 Launcher 1 | . . . . 3 Peak Build Rating 28 | 6 11 16 15 28 Average Rating 14 | 4 8 14 15 21 On Entrance 9 | . 6 11 15 15 Naked Turns . | . . . . . Heaviest Build 44 | 14 14 22 37 44 Greatest Support 49 | 20 26 39 39 49 Greatest Overweight (x) 7 | 2 . . . 7 Average Overweight (x) . | . . . . . Largest Inventory Capacity 15 | 8 8 8 15 15 Average Capacity 10 | 6 8 8 8 15 Most Carried 15 | 5 8 8 8 15 Average Carried 7 | 2 5 7 7 10 Final Capacity 15 | 8 8 8 15 15 Final Carried 10 | 2 8 8 7 10 Class Distribution -------------------- 71% | Mutant 24% | Tank 3% | Scavenger-Tank Dominant Class ---------------- Mutant | -10/Materials Mutant | -9/Materials Mutant | -9/Mines Tank | -8/Materials Resources | -11 -10 -9 -9 -8 ----------- Run | Yrd Mat Mat Min Mat Matter Collected 797 | 232 123 183 24 235 Remotely . | . . . . . Salvage Created 920 | . 267 202 . 451 Parts 76 | . 14 19 . 43 Haulers Intercepted . | . . . . . Recyclers Shooed 1 | . . . . 1 Parts Field Recycled . | . . . . . Retrieved Matter . | . . . . . Parts Self-Destructed . | . . . . . Prevented . | . . . . . Kills | -11 -10 -9 -9 -8 ------- Run | Yrd Mat Mat Min Mat Combat Hostiles Destroyed 27 | . 8 4 . 15 Guns 17 | . 7 4 . 6 AOE 9 | . . . . 9 Classes Destroyed 8 | . 3 1 . 4 Worker 1 | . . . . 1 Builder 5 | . . . . 5 Watcher 2 | . 1 1 . . Swarmer 7 | . 3 . . 4 Grunt 13 | . 5 2 . 6 Sentry 4 | . . 2 . 2 Specialist 2 | . . . . 2 Heavy 1 | . . . . 1 Best Kill Streak 8 | . 3 2 . 8 Combat Bots Only 6 | . 3 2 . 6 Max Kills in Single Turn 3 | . 1 1 . 3 Gunslinging . | . . . . . Exploded 3 | . . . . 3 Melee . | . . . . . Uniques/NPCs Destroyed . | . . . . . Combat | -11 -10 -9 -9 -8 -------- Run | Yrd Mat Mat Min Mat Hostile Shots Fired 232 | . 81 24 . 127 Missed 66 | . 26 7 . 33 Damage Taken 2847 | . 499 174 . 2174 Core 702 | . 109 42 . 551 Absorbed by Shields 141 | . 81 60 . . Redirected to Shielding 12 | . 12 . . . Ignored by Resistances 10 | . . . . 10 Core Remaining (%) 81 | 100 56 . 89 . Volleys Fired 89 | . 41 15 . 33 Largest 3 | . 2 2 . 3 Hottest 90 | . 90 60 . 83 Shots Fired 192 | . 81 30 . 81 Gun 173 | . 81 30 . 62 Cannon . | . . . . . Launcher 19 | . . . . 19 Special . | . . . . . Kinetic 106 | . 24 20 . 62 Thermal 67 | . 57 10 . . Explosive 19 | . . . . 19 Electromagnetic . | . . . . . Robot Hit Streak 12 | . 7 12 . 9 Robot Miss Streak 8 | . 8 2 . 5 Penetration Max . | . . . . . Secondary Targets 1 | . 1 . . . Max Gunslinging Chain 1 | . 1 . . . Shots Hit Robots 113 | . 42 25 . 46 Core Hits 66 | . 14 8 . 44 Critical Kills . | . . . . . Critical Parts Destroyed . | . . . . . Critical Strikes . | . . . . . Melee Attacks . | . . . . . Impact . | . . . . . Slashing . | . . . . . Piercing . | . . . . . Sneak Attacks . | . . . . . Combat Hostiles . | . . . . . Follow-up Attacks . | . . . . . Damage Inflicted 3050 | . 500 346 2 2202 Guns 1321 | . 500 312 . 509 Cannons . | . . . . . Explosions 1682 | . . . . 1682 Melee . | . . . . . Ramming 47 | . . 34 2 11 Kinetic 857 | . 136 212 . 509 Thermal 464 | . 364 100 . . Explosive 1682 | . . . . 1682 Electromagnetic . | . . . . . Impact . | . . . . . Slashing . | . . . . . Piercing . | . . . . . Highest Corruption 1 | . . 1 1 . Average Corruption 1 | . . 1 1 . Corruption Purged . | . . . . . Corruption Blocked . | . . . . . Overload Shots . | . . . . . Overflow Damage 40 | . . . . 40 Projectiles . | . . . . . Explosions 40 | . . . . 40 Melee . | . . . . . Knockbacks . | . . . . . Impact . | . . . . . Kinetic . | . . . . . Secondary . | . . . . . Self-Inflicted Damage 83 | . . . . 83 Shots 2 | . . . . 2 Rammed . | . . . . . Targets Rammed 12 | . 1 4 2 5 Kicked 12 | . 1 4 2 5 Crushed . | . . . . . Highest Temperature 438 | . 438 30 . 66 Average Temperature 84 | . 132 9 . 23 Received Heat Transfer 738 | . 186 66 . 486 Effects 2 | . 2 . . . Shutdowns 2 | . 2 . . . Siege Activations . | . . . . . Robots Corrupted . | . . . . . Combat Hostiles . | . . . . . Parts Fried . | . . . . . Impact Corruptions . | . . . . . Robots Melted 1 | . 1 . . . Combat Hostiles 1 | . 1 . . . Parts Melted 3 | . 3 . . . Heat Transferred 1157 | . 932 225 . . Parts Sabotaged . | . . . . . Parts Stolen . | . . . . . Parts Stripped . | . . . . . Power Chain Reactions . | . . . . . Alert | -11 -10 -9 -9 -8 ------- Run | Yrd Mat Mat Min Mat Peak Influence 298 | . 176 196 76 298 Initial 76 | . . 35 76 29 Average 108 | . 98 128 76 140 Maximum Alert Level 1 | . . . . 1 Low Security (%) 93 | 100 100 100 100 80 Level 1 6 | . . . . 19 Level 2 . | . . . . . Level 3 . | . . . . . Level 4 . | . . . . . Level 5 . | . . . . . High Security . | . . . . . Max Security . | . . . . . Squads Dispatched 8 | . 2 1 . 5 Investigation 3 | . 1 1 . 1 Extermination . | . . . . . Reinforcement 4 | . 1 . . 3 Assault . | . . . . . Garrison 1 | . . . . 1 Intercept . | . . . . . Searches Triggered . | . . . . . Construction Impeded 1 | . . . . 1 Haulers Reinforced . | . . . . . Active Scanning Responses . | . . . . . Cargo Convoy Interrupts . | . . . . . Stealth | -11 -10 -9 -9 -8 --------- Run | Yrd Mat Mat Min Mat Distress Signals 5 | . . 1 . 4 Communications Jammed . | . . . . . Distress Signals . | . . . . . Times Spotted 46 | . 13 9 . 24 Peak Tracking Total 9 | . 3 5 . 9 Tactical Retreats . | . . . . . Traps | -11 -10 -9 -9 -8 ------- Run | Yrd Mat Mat Min Mat Traps Triggered 1 | . 1 . . . Indirectly . | . . . . . Trap Hack Attempts . | . . . . . Triggered . | . . . . . Disarmed . | . . . . . Reprogrammed . | . . . . . Reused . | . . . . . Traps Extracted . | . . . . . Installed . | . . . . . Triggered . | . . . . . Machines | -11 -10 -9 -9 -8 ---------- Run | Yrd Mat Mat Min Mat Machines Disabled 1 | . . . . 1 Max in Single Turn 1 | . . . . 1 Garrison Access 1 | . . . . 1 Machines Repaired . | . . . . . Machines Dismantled . | . . . . . Machines Sabotaged . | . . . . . Overloaded Fab Kills . | . . . . . Hacking | -11 -10 -9 -9 -8 --------- Run | Yrd Mat Mat Min Mat Machines Accessed 9 | . 3 2 . 4 Terminals 8 | . 3 2 . 3 Fabricators . | . . . . . Repair Stations . | . . . . . Recycling Units . | . . . . . Scanalyzers . | . . . . . Garrison Access 1 | . . . . 1 Total Hacks 32 | . 12 7 . 13 Successful 13 | . 5 3 . 5 Failed 19 | . 7 4 . 8 Catastrophic 5 | . . 1 . 4 Database Lockouts . | . . . . . Manual 29 | . 12 7 . 10 Terminals 29 | . 12 7 . 10 Fabricators . | . . . . . Repair Stations . | . . . . . Recycling Units . | . . . . . Scanalyzers . | . . . . . Garrison Access 3 | . . . . 3 Terminal Hacks 4 | . 2 1 . 1 Zone Layout 4 | . 2 1 . 1 Fabricator Hacks . | . . . . . Repair Station Hacks . | . . . . . Recycling Unit Hacks . | . . . . . Scanalyzer . | . . . . . Garrison Access Hacks 1 | . . . . 1 Seal Access 1 | . . . . 1 Unauthorized Hacks 8 | . 3 2 . 3 Terminals 8 | . 3 2 . 3 Botnet 8 | . 3 2 . 3 Fabricators . | . . . . . Repair Stations . | . . . . . Recycling Units . | . . . . . Scanalyzers . | . . . . . Garrison Access . | . . . . . Data Cores Recovered . | . . . . . Used . | . . . . . Hacking Detections 8 | . 3 1 . 4 Full Trace Events 5 | . 2 1 . 2 Feedback Events 1 | . . 1 . . Corruption 1 | . . 1 . . Feedback Blocked . | . . . . . Robot Schematics Acquired . | . . . . . Robots Built . | . . . . . Authchips . | . . . . . Time . | . . . . . Total Robot Build Rating . | . . . . . Part Schematics Acquired . | . . . . . Parts Built . | . . . . . Authchips . | . . . . . Time . | . . . . . Total Part Build Rating . | . . . . . Parts Repaired . | . . . . . Time . | . . . . . Parts Recycled . | . . . . . Recycled Matter . | . . . . . Retrieved Matter . | . . . . . Retrieved Components . | . . . . . Parts Scanalyzed . | . . . . . Part Schematics Acquired . | . . . . . Parts Damaged . | . . . . . Bothacking | -11 -10 -9 -9 -8 ------------ Run | Yrd Mat Mat Min Mat Used RIF Installer . | . . . . . Robots Hacked . | . . . . . Non-combat . | . . . . . Combat . | . . . . . Robot Hacks Applied . | . . . . . Relay Couplers Released 2 | . . . . 2 Machine Destruction 2 | . . . . 2 Fabnet Peak Effective % . | . . . . . Robots Rewired . | . . . . . Allies Hacked . | . . . . . Hacks Repelled . | . . . . . Allies | -11 -10 -9 -9 -8 -------- Run | Yrd Mat Mat Min Mat Total Allies . | . . . . . Largest Group . | . . . . . Highest-Rated Group . | . . . . . Highest-Rated Ally . | . . . . . Total Orders . | . . . . . Ally Attacks . | . . . . . Total Damage . | . . . . . Kills . | . . . . . Allies Corrupted . | . . . . . Allies Melted . | . . . . . Intel | -11 -10 -9 -9 -8 ------- Run | Yrd Mat Mat Min Mat Robot Analysis Total . | . . . . . Derelict Logs Recovered . | . . . . . Drone Launches . | . . . . . Drone Recoveries . | . . . . . Exploration | -11 -10 -9 -9 -8 ------------- Run | Yrd Mat Mat Min Mat Turns Passed 1679 | 96 518 252 239 574 Spaces Moved 990 | 79 283 141 194 293 Core 40 | 34 . . . 6 Treads . | . . . . . Legs 950 | 45 283 141 194 287 Wheels . | . . . . . Hover . | . . . . . Flight . | . . . . . Fastest Speed 50 | 50 120 120 120 120 Average Speed 125 | 102 120 120 120 143 Slowest Speed 400 | 150 120 120 120 400 Overloaded Moves . | . . . . . Propulsion Burnouts . | . . . . . Robots Hopped . | . . . . . Cave-ins Triggered . | . . . . . Exploration Rate (%) 23 | 4 35 22 32 24 Regions Visited 4 Branch Regions 1 Pre-discovered Areas . | . . . . . Known Exits Taken . | . . . . . Unknown Exits Taken 4 | 1 1 1 1 . Scrap Searched 1 | . . . 1 . Spaces Dug . | . . . . . Terrain Destroyed 93 | . . . . 93 Melee . | . . . . . Projectile . | . . . . . AOE 93 | . . . . 93 Terrain Rammed . | . . . . . Walls Destroyed . | . . . . . Machines Disabled . | . . . . . Actions | -11 -10 -9 -9 -8 --------- Run | Yrd Mat Mat Min Mat Total 1251 | 93 381 195 200 382 Wait 51 | . 16 21 1 13 Move 987 | 78 282 141 193 293 Hop . | . . . . . Pick Up 49 | 8 19 5 1 16 Fast Attach . | . . . . . Attach 19 | 6 1 4 . 8 Detach . | . . . . . Swap 23 | 1 9 3 1 9 Drop 22 | . 12 3 2 5 Fire 89 | . 41 15 . 33 Melee . | . . . . . Ram . | . . . . . Kick 11 | . 1 3 2 5 Crush . | . . . . . Escape Stasis . | . . . . . Rewire . | . . . . . Trap . | . . . . . Miscellaneous . | . . . . . Route ------- -11/Scrapyard -10/Materials -9/Materials -9/Mines -8/Materials History --------- Turn | Location | Event 22 | -11/Scrapyard | Discovered new exit (range 14) 97 | -11/Scrapyard | Entered Materials 303 | -10/Materials | Build established: Mutant 588 | -10/Materials | Discovered new exit (range 3) 615 | -10/Materials | Entered another Materials area 615 | -9/Materials | Evolved 2 slots: Propulsion x1, Utility x1 817 | -9/Materials | Met 8R-AWN 846 | -9/Materials | Discovered new exit (range 16) 867 | -9/Materials | Entered Mines 869 | -9/Mines | Followed 8R-AWN into the Mines 893 | -9/Mines | Met a Derelict bent on vengeance 1082 | -9/Mines | Discovered new exit (range 14) 1106 | -9/Mines | Entered Materials 1106 | -8/Materials | Evolved 2 slots: Propulsion x1, Weapon x1 1400 | -8/Materials | Garrison activated, responded to threat 1504 | -8/Materials | Build established: Tank 1648 | -8/Materials | Core integrity fell below 50% 1656 | -8/Materials | Core integrity fell below 20% 1680 | -8/Materials | Destroyed by G-47 Trooper with Particle Gun Last Messages --------------- U-05 Engineer lays Concrete. H-61 Shepherd destroyed. Destroyed Particle Gun. U-05 Engineer lays Concrete. The unstable cave ceiling collapses. U-05 Engineer lays Concrete. U-05 Engineer destroyed. G-47 Trooper destroyed. Imp. Carbon-fiber Leg destroyed. G-47 Trooper destroyed. The unstable cave ceiling collapses. Mni. Grenade Launcher destroyed. Penetrated by Slug. The unstable cave ceiling collapses. Acquired 4 matter. R-06 Scavenger collects Terrain Scan Processor. Acquired 1 matter. The unstable cave ceiling collapses. Destroyed Lgt. Nuclear Core. U-05 Engineer lays Concrete. Map ----- +----------------------------------------------------+ | ?????????????????????????????????? | | ?????????????????????????????????? | | ?????????????????????????????????? | | ?????????????????????????????????? | | ?????????????????????????????????? | | ?????????????????????????????????? | | ?????????????????????????????????? | | ?????????????????????????????????? | | ?????????????????????????????????? | | ?????????????????????????????????? | | ?????????????????????????????????? | | ?????????????????????????????????? | | ???????????????###+###? ????????? | | ???????????????# #? ????????? | | ?????????????### ##+#####????? | | #?# + #????? | | #?# ### #????? | | #?# #?# #????? | | #?# #?# #????? | | ###?# #?# u !! #????? | | #???# ### ! #????? | | ###?# # ! #????? | | #?# * #????? | | " #?#####/## " " #????? | | ""###### # = "G"% #????? | | S"# # ! % ""@! #????? | | # # ! ! ####?? | | # + =% ;% #?? | | # # # [ ## #?? | | # # ## ! %#????? | | ######## # ! # g #????? | | ####### * #????? | | # # ####??? | | # # # ! #??? | | # # + #??? | | ####### # # ## #??? | | ######## # ## """ """ #??? | | """#??????# # ## """ """ #??? | | """#??????###### ## """ """ #??? | | """#???????????# ## #??? | | #???????????# ##[ #??? | | """#??????????##+#########+##??? | | """#??????????# #?# #???? | | """#??????????# ! #?# #???? | | #??????????# #?# #???? | | ######??????????# #?# #???? | | ?????????????????? #?# #???? | | ??????????????????? ??# #???? | | ??????????????????? ??# #???? | | ???????????????????? ???# #???? | +----------------------------------------------------+ Best States ------------- Heat Dissipation 31 Energy Generation 14 Energy Capacity 265 Matter Stores 300 Matter Capacity 300 Sight Range 16 Terrain Scan Density 110 Armor Coverage 300 Resistance: TH 10 Core Shielding 20 Evasion (%) 55 Item Schematics ----------------- None Robot Schematics ------------------ None Fabricated ------------ Nothing Alien Tech Used ----------------- None Achievements -------------- None Challenges ------------ None Game ------ Seed SpikedHeavyNanoactuators Manual? 0 Play Time 00:17:56 Cumulative 3.6 hours Start 2024.11.22 @ 18:05:28 End 2024.11.22 @ 18:22:59 Sessions 1 Manual Loads 0 Difficulty Rogue Special Mode None Game No. 8 Rogue 2 Adventurer 4 Explorer 2 Win Type - Total 0 Types 0/0/0/0/0/0/0/0/0 Lore% 1 Gallery% 10 Achievement% 12 Wizard Run 0 Options --------- Layout 1 ASCII 0 Keyboard 0 Movement Arrows Keybinds 0 Fullscreen 1 Font 24/Smallcaps Map View 50x35 Zoom Use 0% Tactical HUD 0 Map Filters NONE Filters NONE Steam 1 RUN: 84fbbacd-6c69-41ad-9659-8b112698d9a8